[Event "44th Chess Olympiad Open 2022"]
[Site "Chennai"]
[Date "2022.08.01"]
[Round "4.36"]
[White "Diaz Hollemaert, Nahuel"]
[Black "Ahmed, Ali Layth Ahmed"]
[Result "1/2-1/2"]
[WhiteElo "2425"]
[BlackElo "2249"]
[Annotator "TA"]
[PlyCount "137"]
[EventDate "2022.??.??"]
[TimeControl "60"]

{[%evp 15,137,-2,2,6,23,22,39,33,27,8,40,34,58,55,46,42,66,7,50,49,54,67,67,44,
88,0,0,0,33,35,40,-1,55,23,68,24,66,58,74,70,79,78,82,78,86,79,93,70,71,72,72,
72,72,73,72,72,72,68,85,80,110,110,109,109,94,87,121,121,154,146,143,131,140,
154,147,146,166,55,55,55,55,55,107,55,55,55,55,55,55,57,57,27,33,28,57,36,36,
31,36,36,57,38,41,8,40,41,55,55,55,62,62,0,0,0,102,62,150,62,62,62,62,62,62,62]
} 1. Nf3 {[%emt 0:00:04]} Nf6 {[%emt 0:00:19]} 2. c4 {[%emt 0:00:33]} e6 {
[%emt 0:00:45]} 3. Nc3 {[%emt 0:02:28]} Bb4 {[%emt 0:00:47]} 4. Qb3 {[%emt 0:
00:00]} c5 {[%emt 0:04:17]} 5. g3 {[%emt 0:15:24]} Nc6 {[%emt 0:02:13]} 6. a3 {
[%emt 0:00:41]} Ba5 {[%emt 0:01:06]} 7. Bg2 {[%emt 0:00:10]} O-O {[%emt 0:00:
00]} 8. O-O {[%emt 0:00:53]} d5 {[%emt 0:09:47]} 9. d3 {[%emt 0:13:59] A17:
English Opening: 1...Nf6 with ...Bb4.} d4 {[%emt 0:06:55]} 10. Na4 {[%emt 0:00:
00]} Qd6 {[%emt 0:05:45]} 11. e3 {[%emt 0:31:17] [#]} Rb8 $146 {[%emt 0:22:27]}
({Predecessor:} 11... h6 12. exd4 cxd4 13. Qc2 e5 14. b4 Bc7 15. Re1 Re8 16. b5
Nb8 17. Bd2 Qd8 {1-0 (60) Norri,J (2405)-Sammalvuo,T (2395) Finland 1998}) 12.
exd4 {[%emt 0:05:44]} cxd4 {[%emt 0:05:24]} 13. Qc2 {[%emt 0:00:20]} Bc7 {
[%emt 0:04:26]} 14. b4 {[%emt 0:02:45]} Qd8 {[%emt 0:03:29]} 15. Re1 {[%emt 0:
00:00]} Re8 $1 {[%emt 0:06:11]} 16. Bd2 {[%emt 0:02:17]} (16. Nc5 $14) 16...
Ne7 {[%emt 0:06:25]} 17. Nc5 {[%emt 0:04:00]} Ng6 {[%emt 0:05:35]} 18. Bg5 {
[%emt 0:05:02]} h6 {[%emt 0:01:02]} 19. Bxf6 {[%emt 0:02:02]} Qxf6 {[%emt 0:00:
00]} 20. Qb2 {[%emt 0:01:57]} (20. Qa4 $16 Qd8 21. Re4 (21. Qxa7 Re7 $14))
20... Rd8 $11 {[%emt 0:00:31]} 21. Ne4 {[%emt 0:03:41]} Qf5 {[%emt 0:03:03]}
22. c5 {[%emt 0:00:00]} (22. Nxd4 $2 Qe5 23. Nd6 Qxd6 $19) 22... e5 {[%emt 0:
00:00]} 23. b5 {[%emt 0:00:00]} Qe6 {[%emt 0:02:44]} (23... b6 $11) 24. Qb4 {
[%emt 0:01:17]} (24. a4 $5 {[%cal Ra4a5]}) 24... Ne7 {[%emt 0:00:38]} 25. Nd6 {
[%emt 0:00:04]} Nd5 {[%emt 0:01:34]} 26. Qc4 {[%emt 0:00:10]} Bxd6 {[%emt 0:00:
00]} 27. Nxd4 $1 {[%emt 0:01:06]} Qf6 {[%emt 0:00:01]} 28. Bxd5 {[%emt 0:00:19]
} (28. Qxd5 $2 Bc7 29. Qb3 Rxd4 $19) 28... exd4 {[%emt 0:02:56]} 29. cxd6 {
[%emt 0:00:03]} Bf5 {[%emt 0:00:33]} 30. Re7 {[%emt 0:01:23][%cal Re7f7] White
is much more active.} Qxd6 {[%emt 0:00:01]} 31. Rxf7 {[%emt 0:00:41][%cal
Yc4d4]} (31. Bxf7+ {looks sharper.} Kh7 32. Rae1 Rbc8 33. Be6) 31... Qxd5 {
[%emt 0:00:18]} 32. Rxf5 {[%emt 0:00:05] Pin} Qxc4 {[%emt 0:00:21]} 33. dxc4
$16 {[%emt 0:00:01] Endgame KRR-KRR} Rbc8 {[%emt 0:00:29]} 34. c5 {[%emt 0:00:
20]} d3 {[%emt 0:00:16]} 35. Rd1 {[%emt 0:00:39]} Rd4 {[%emt 0:00:12]} 36. Rd2
{[%emt 0:00:38]} Rcd8 {[%emt 0:00:45]} 37. Rf3 {[%emt 0:01:07]} R8d5 {[%emt 0:
00:27]} 38. c6 {[%emt 0:00:11]} Rxb5 {[%emt 0:00:00]} 39. cxb7 {[%emt 0:00:10]}
({But not} 39. Rdxd3 $6 Rxd3 40. Rxd3 bxc6 $11) 39... Rxb7 {[%emt 0:00:16]} 40.
Rdxd3 {[%emt 0:00:17]} Ra4 {[%emt 0:00:19]} 41. Kg2 {[%emt 0:31:02]} Rc4 {
[%emt 0:30:59]} 42. Rd5 {[%emt 0:00:00]} Ra4 {[%emt 0:00:00]} 43. h3 {[%emt 0:
00:00][%cal Yh2h3,Yh3h4,Yh4h5]} Kh7 {[%emt 0:00:00]} 44. h4 {[%emt 0:00:00]}
Rc7 {[%emt 0:00:00]} 45. h5 {[%emt 0:00:00]} Rac4 {[%emt 0:00:00]} 46. Kh3 {
[%emt 0:00:00]} (46. Rf8 $18 {Strongly threatening Rdd8.} R4c5 47. Rfd8) 46...
R7c5 $1 $14 {[%emt 0:00:00]} 47. Rxc5 {[%emt 0:00:00]} Rxc5 {[%emt 0:00:00]
KR-KR} 48. g4 {[%emt 0:00:00]} Kg8 {[%emt 0:00:00] [#]} (48... Ra5 $14) 49. Kh4
{[%emt 0:00:00]} (49. a4 $1 $16) 49... Rc4 {[%emt 0:00:00]} 50. Kg3 {[%emt 0:
00:00]} Ra4 {[%emt 0:00:00]} 51. Re3 {[%emt 0:00:00]} Kf7 {[%emt 0:00:00]} 52.
f3 {[%emt 0:00:00]} Kf6 {[%emt 0:00:00]} 53. Kf2 {[%emt 0:00:00]} Ra6 {[%emt 0:
00:00]} 54. Rc3 {[%emt 0:00:00]} Ra4 {[%emt 0:00:00]} 55. Ke2 {[%emt 0:00:58]}
Ra6 {[%emt 0:00:00]} 56. Kd3 {[%emt 0:02:33]} Ke5 {[%emt 0:00:47]} 57. Ke3 {
[%emt 0:00:50]} Ra4 {[%emt 0:00:00]} 58. Rb3 {[%emt 0:00:37]} Kf6 {[%emt 0:00:
55]} 59. f4 {[%emt 0:01:08]} Ra5 {[%emt 0:03:10]} 60. Rc3 {[%emt 0:00:40]} Ra4
{[%emt 0:00:16]} 61. Kf3 {[%emt 0:01:08]} Ra5 {[%emt 0:00:18]} 62. Kg3 {
[%emt 0:00:30]} Ra4 {[%emt 0:00:00]} 63. Rc6+ {[%emt 0:01:20]} (63. Rb3 $14)
63... Kf7 $1 $11 {[%emt 0:00:16]} 64. Rc7+ {[%emt 0:00:02]} Kf8 {[%emt 0:00:57]
} (64... Kg8 $11 {remains equal.}) 65. Rc3 {[%emt 0:00:44]} Kf7 {[%emt 0:00:04]
[#]} ({Better is} 65... Kg8 $14) 66. Kh4 {[%emt 0:01:01]} ({White should try} 
66. g5 $1 $16 {[%cal Rg5g6]}) 66... Ke7 {[%emt 0:01:57] White is slightly
better.} 67. Rf3 {[%emt 0:00:26]} Kf6 {[%emt 0:00:19]} 68. Kg3 {[%emt 0:00:09]}
Ra5 {[%emt 0:00:24]} 69. Re3 {[%emt 0:01:07] Weighted Error Value: White=0.13 
(very precise) /Black=0.12 (very precise)} 1/2-1/2

[Event "44th Chess Olympiad Open 2022"]
[Site "Chennai"]
[Date "2022.08.01"]
[Round "4.36"]
[White "Salih, Akar Ali Salih"]
[Black "Hoffman, Alejandro"]
[Result "1/2-1/2"]
[WhiteElo "2243"]
[BlackElo "2390"]
[Annotator "TA"]
[PlyCount "63"]
[EventDate "2022.??.??"]
[TimeControl "60"]

{[%evp 22,63,33,19,74,50,67,67,87,50,74,47,64,50,43,45,44,-83,-85,-77,-75,-79,
-64,-52,-52,-72,-76,-76,-68,-94,8,7,6,7,25,0,38,35,36,35,35,34,71,69]} 1. e4 {
[%emt 0:00:52]} e5 {[%emt 0:00:27]} 2. Nf3 {[%emt 0:00:30]} d6 {[%emt 0:00:09]}
3. d4 {[%emt 0:00:23]} exd4 {[%emt 0:00:09]} 4. Nxd4 {[%emt 0:00:05]} Nf6 {
[%emt 0:00:09]} 5. Nc3 {[%emt 0:00:07]} Be7 {[%emt 0:00:07]} 6. Bf4 {[%emt 0:
00:00]} O-O {[%emt 0:00:31]} 7. Qd2 {[%emt 0:00:36]} Nc6 {[%emt 0:01:22]} 8.
O-O-O {[%emt 0:02:09]} Nxd4 {[%emt 0:00:33]} 9. Qxd4 {[%emt 0:00:05]} Be6 {
[%emt 0:00:12]} 10. Qd2 {[%emt 0:02:38]} a6 {[%emt 0:06:05]} 11. f3 {[%emt 0:
00:00]} b5 {[%emt 0:11:19]} 12. g4 {[%emt 0:00:00]} Nd7 {[%emt 0:03:30] C41:
Philidor Defence.} (12... c6 $11 {keeps the balance.}) 13. Kb1 {[%emt 0:05:57]
[%cal Yh2h4] [#] White is more active.} (13. h4 $5) 13... Nb6 $146 {[%emt 0:00:
00]} ({Predecessor:} 13... Bf6 14. g5 Be5 15. Be3 Nc5 16. Ne2 Bc4 17. f4 Nxe4
18. Qe1 Bxb2 19. Kxb2 Re8 {1-0 (29) Szieberth,A (2300)-Strauss,A (2240)
Oberwart 1996}) 14. h4 {[%emt 0:04:00]} c5 {[%emt 0:20:28] White is slightly
better.} 15. g5 {[%emt 0:22:37]} (15. Bxd6 $6 b4 16. Bxe7 Qxe7 $11) 15... Ra7 {
[%emt 0:09:03]} 16. h5 {[%emt 0:08:50]} ({Don't blunder} 16. Bxd6 $2 Bxd6 17.
Bxb5 (17. Qxd6 $2 Rd7 $19) 17... axb5 $19) 16... b4 {[%emt 0:13:31]} 17. Nd5 {
[%emt 0:00:14]} Nxd5 {[%emt 0:00:07]} 18. exd5 {[%emt 0:00:05]} Bf5 {[%emt 0:
00:00]} 19. Bd3 {[%emt 0:02:06]} (19. Re1 $14 {keeps the upper hand.}) 19...
Bxd3 $17 {[%emt 0:04:55]} 20. cxd3 {[%emt 0:00:52]} Qa8 {[%emt 0:00:49]} 21. d4
{[%emt 0:19:45] [#] dxc5 is the strong threat.} Qxd5 {[%emt 0:11:02]} 22. dxc5
{[%emt 0:00:23]} Qf5+ {[%emt 0:00:12]} ({Resist} 22... Qxc5 23. h6 (23. Bxd6
Qf5+ 24. Qc2 Qxc2+ 25. Kxc2 Rc8+ 26. Kb1 Bxg5 $15) 23... Rc7 24. Qd3 $14) 23.
Ka1 {[%emt 0:00:06]} dxc5 {[%emt 0:00:07]} 24. Rhe1 {[%emt 0:02:42]} f6 {
[%emt 0:03:55][%cal Rf6g5]} 25. g6 {[%emt 0:04:57]} hxg6 {[%emt 0:00:17]} ({
Black should try} 25... Qxh5 $17 26. gxh7+ Kh8) 26. hxg6 $11 {[%emt 0:00:06]}
Qxg6 {[%emt 0:00:09]} 27. Qd5+ {[%emt 0:00:56]} Qf7 {[%emt 0:00:40] Strongly
threatening ...Qxd5.} 28. Qc6 {[%emt 0:01:07]} (28. Qf5 $5 {[%cal Re1h1]})
28... f5 {[%emt 0:01:43]} 29. Be5 $1 {[%emt 0:02:21][%cal Ye5g7] Black must
now prevent Bxg7!} Bf6 {[%emt 0:00:26]} 30. Bxf6 {[%emt 0:02:09]} Qxf6 {
[%emt 0:00:06]} (30... Rc7 $2 31. Qd6 Rfc8 {[#]} 32. Bxg7 $1 $18) 31. Qxc5 {
[%emt 0:00:12]} Qf7 {[%emt 0:01:28]} 32. Qxb4 {[%emt 0:00:28] Weighted Error
Value: White=0.21 (precise) /Black=0.25 (precise)} 1/2-1/2

[Event "44th Chess Olympiad Open 2022"]
[Site "Chennai"]
[Date "2022.08.01"]
[Round "4.36"]
[White "Mohammed, Zozek Salah Mohamme"]
[Black "Roselli Mailhe, Bernardo"]
[Result "1/2-1/2"]
[WhiteElo "2232"]
[BlackElo "2413"]
[Annotator "TA"]
[PlyCount "100"]
[EventDate "2022.??.??"]
[TimeControl "60"]

{[%evp 19,100,36,51,0,31,36,39,31,31,32,47,35,38,0,0,0,13,0,0,-28,0,0,0,-2,0,0,
0,0,0,0,0,0,0,0,0,0,0,0,0,0,0,0,0,0,0,0,0,0,0,0,0,0,0,0,0,0,0,0,0,0,0,0,0,0,0,
0,0,0,0,0,0,0,0,0,0,0,0,0,0,0,0,0,0]} 1. d4 {[%emt 0:00:08]} Nf6 {[%emt 0:00:
00]} 2. c4 {[%emt 0:00:05]} g6 {[%emt 0:01:14]} 3. Nf3 {[%emt 0:00:09]} Bg7 {
[%emt 0:00:06]} 4. Nc3 {[%emt 0:00:08]} O-O {[%emt 0:00:19]} 5. g3 {[%emt 0:00:
00]} d6 {[%emt 0:00:28]} 6. Bg2 {[%emt 0:00:09]} Nbd7 {[%emt 0:02:02]} 7. O-O {
[%emt 0:00:06]} e5 {[%emt 0:01:21]} 8. e4 {[%emt 0:00:13]} c6 {[%emt 0:00:07]}
9. h3 {[%emt 0:00:05]} a5 {[%emt 0:00:24]} 10. Be3 {[%emt 0:02:25]} a4 {
[%emt 0:02:21]} 11. dxe5 {[%emt 0:05:42] E69: King's Indian: Fianchetto: 6...
Nbd7 7 0-0 e5 8 e4 c6 9 h3.} (11. d5 $14) 11... dxe5 {[%emt 0:06:35]} 12. b4 {
[%emt 0:11:52]} axb3 {[%emt 0:07:21]} 13. axb3 {[%emt 0:00:14] White is
slightly better.} Rxa1 {[%emt 0:00:07]} 14. Qxa1 {[%emt 0:00:03]} Qe7 {[%emt 0:
00:00]} 15. Qa5 {[%emt 0:02:39]} Re8 {[%emt 0:09:54] [#]} 16. Rd1 $146 {
[%emt 0:02:25]} ({Predecessor:} 16. c5 Nf8 17. Nd2 Be6 18. Nc4 Bxc4 19. bxc4
Ne6 20. Rb1 Bf8 21. Na4 Rd8 22. Qa7 {½-½ (30) Gaprindashvili,V (2482)
-Kveinys,A (2530) Cappelle la Grande 2001}) 16... Bf8 $1 {[%emt 0:03:09]} 17.
Ne1 {[%emt 0:08:23]} Nc5 {[%emt 0:11:24]} 18. Qa2 {[%emt 0:09:50]} (18. Qa3 {
looks sharper.} Be6 19. Nd5 cxd5 20. exd5 Qd6 21. Qxc5 Qxc5 22. Bxc5 Bxc5 23.
Nd3) 18... Be6 {[%emt 0:12:00]} 19. Nd3 {[%emt 0:09:08]} Nfd7 {[%emt 0:05:44]}
20. Nxc5 {[%emt 0:14:51] The position is equal.} Nxc5 {[%emt 0:00:15]} 21. Na4
{[%emt 0:03:11]} Nd7 {[%emt 0:06:05]} 22. Nb6 {[%emt 0:14:21]} Nxb6 {[%emt 0:
00:00]} 23. Bxb6 {[%emt 0:00:00]} Qb4 {[%emt 0:00:13]} 24. Be3 {[%emt 0:00:00]}
Bc5 {[%emt 0:03:33]} 25. Bxc5 {[%emt 0:00:00]} Qxc5 {[%emt 0:03:31]} 26. Qa4 {
[%emt 0:01:08]} Qb6 {[%emt 0:05:43]} 27. Bf1 {[%emt 0:01:51]} Rc8 {[%emt 0:00:
00]} 28. Rd6 {[%emt 0:01:52]} Qc5 {[%emt 0:02:30]} 29. Rd1 {[%emt 0:00:14]} h5
{[%emt 0:01:35]} 30. b4 {[%emt 0:04:26]} Qe7 {[%emt 0:00:15]} 31. c5 {[%emt 0:
00:00]} h4 {[%emt 0:01:11]} 32. g4 {[%emt 0:04:08]} Rd8 {[%emt 0:01:51]} 33.
Rxd8+ {[%emt 0:00:35]} Qxd8 $11 {[%emt 0:00:06] Endgame KQB-KQB} 34. Qa1 {
[%emt 0:00:26]} Qd2 {[%emt 0:01:39]} 35. Qxe5 {[%emt 0:05:08]} Qxb4 {[%emt 0:
00:25]} 36. Kg2 {[%emt 0:00:37]} Qe1 {[%emt 0:01:50]} 37. Qd4 {[%emt 0:00:00]}
Qc1 {[%emt 0:00:42]} 38. Qd8+ {[%emt 0:00:22]} Kg7 {[%emt 0:00:06]} 39. Qd4+ {
[%emt 0:00:05]} Kg8 {[%emt 0:00:29]} 40. Qd8+ {[%emt 0:00:07]} Kg7 {[%emt 0:00:
09]} 41. Qd4+ {[%emt 0:30:26]} Kh7 {[%emt 0:32:01]} 42. Be2 {[%emt 0:00:00]}
Qf4 {[%emt 0:00:00]} 43. Bf3 {[%emt 0:00:00]} Qc1 {[%emt 0:00:00]} 44. Be2 {
[%emt 0:00:04]} Ba2 {[%emt 0:00:00]} 45. Bf3 {[%emt 0:00:00]} Bc4 {[%emt 0:08:
00] [#] aiming for ...Bf1+.} 46. Bd1 {[%emt 0:00:00]} Be6 {[%emt 0:00:00]} 47.
Be2 {[%emt 0:00:00]} Qb1 {[%emt 0:00:00]} 48. Bf3 {[%emt 0:00:00]} Qc1 {
[%emt 0:00:00]} 49. Be2 {[%emt 0:00:00]} Ba2 {[%emt 0:00:00]} 50. Bf3 {[%emt 0:
00:37]} Be6 {[%emt 0:00:00] Weighted Error Value: White=0.04 (flawless) /
Black=0.02 (flawless)} 1/2-1/2

[Event "44th Chess Olympiad Open 2022"]
[Site "Chennai"]
[Date "2022.08.01"]
[Round "4.37"]
[White "Docx, Stefan"]
[Black "Karimov, Alisher"]
[Result "1-0"]
[WhiteElo "2434"]
[BlackElo "2234"]
[Annotator "TA"]
[PlyCount "117"]
[EventDate "2022.??.??"]
[TimeControl "60"]

{[%evp 10,117,24,12,51,51,54,18,46,9,11,3,6,0,26,11,46,22,31,17,27,16,27,11,24,
17,18,13,9,0,15,0,3,0,14,21,20,8,31,7,15,-7,34,12,24,10,31,32,111,110,107,94,
149,144,130,91,95,45,58,18,36,21,87,92,118,113,236,73,62,56,435,416,460,441,
496,449,443,437,459,450,493,494,471,485,611,572,1102,1050,1133,1125,1068,892,
945,956,1414,1363,1539,1429,1645,1598,867,1052,5044,4702,1476,758,29971,29976,
29976,12806]} 1. d4 {[%emt 0:00:04]} Nf6 {[%emt 0:00:10]} 2. c4 {[%emt 0:00:10]
} e6 {[%emt 0:00:16]} 3. Nc3 {[%emt 0:01:56]} Bb4 {[%emt 0:00:17]} 4. Qc2 {
[%emt 0:01:55]} d5 {[%emt 0:00:21]} 5. cxd5 {[%emt 0:01:20]} Qxd5 {[%emt 0:00:
00]} 6. Nf3 {[%emt 0:00:37]} Nc6 {[%emt 0:02:31] E34: Nimzo-Indian: Classical:
4...d5.} 7. e3 {[%emt 0:05:29]} O-O {[%emt 0:05:07]} 8. Be2 {[%emt 0:08:02] [#]
} Qf5 $146 {[%emt 0:01:48] The position is equal.} (8... e5 {keeps more
tension.} 9. O-O Qa5 10. a3 exd4 11. exd4 Bd6) ({Predecessor:} 8... Qa5 9. O-O
e5 10. a3 Bxc3 11. bxc3 e4 12. Nd2 Re8 13. Rb1 {1-0 (49) Mamedyarov,S (2770)
-Girish,A (2498) Chess.com INT 2020}) 9. Qxf5 {[%emt 0:04:08]} (9. Bd3 $5 {
[%cal Rd3f5]} Qh5 10. Be2 $14) 9... exf5 {[%emt 0:00:08]} 10. Bd2 {[%emt 0:00:
00]} Be6 {[%emt 0:02:24]} 11. O-O {[%emt 0:00:25]} Rad8 {[%emt 0:05:55]} 12. g3
{[%emt 0:06:02]} Na5 {[%emt 0:09:31]} 13. Nb1 {[%emt 0:05:51]} Nc6 {[%emt 0:00:
00]} 14. Rc1 {[%emt 0:11:47][%cal Yc1c6] Threatens to win with Rxc6!} Be7 {
[%emt 0:08:06]} 15. Be1 {[%emt 0:01:32]} Nd5 {[%emt 0:02:21]} 16. Nbd2 {
[%emt 0:01:31]} Nb8 {[%emt 0:09:25]} 17. Nb3 {[%emt 0:00:53]} b6 {[%emt 0:00:
00]} 18. Ne5 {[%emt 0:00:42]} Rc8 {[%emt 0:05:45]} 19. Bb5 {[%emt 0:07:36]
[%cal Ye2b5,Yb5c6,Yc6b7]} Bd6 {[%emt 0:04:36]} 20. Nc6 {[%emt 0:01:02]} Nxc6 {
[%emt 0:01:43]} 21. Bxc6 {[%emt 0:00:04]} Ne7 {[%emt 0:00:56]} 22. Bb7 {
[%emt 0:01:15]} Rb8 {[%emt 0:02:35]} 23. Bg2 {[%emt 0:01:03]} Bd5 {[%emt 0:00:
00]} 24. f3 {[%emt 0:02:05]} f6 {[%emt 0:01:48]} 25. e4 {[%emt 0:00:24]} Bb7 {
[%emt 0:05:42]} 26. a3 {[%emt 0:01:18]} a5 {[%emt 0:05:10]} 27. Nd2 {[%emt 0:
00:00]} Nc6 {[%emt 0:03:25]} 28. Bf2 {[%emt 0:00:53]} Rfd8 {[%emt 0:00:38]} ({
Black should try} 28... Rfe8 $14) 29. Nc4 $1 $16 {[%emt 0:05:10]} (29. exf5 $6
Bf8 $11) 29... fxe4 {[%emt 0:09:07]} 30. fxe4 {[%emt 0:00:22] Strongly
threatening d5.} b5 {[%emt 0:00:57]} (30... Rdc8 $142) 31. Nxd6 {[%emt 0:01:09]
} cxd6 {[%emt 0:00:05]} 32. a4 {[%emt 0:04:58]} Ba8 {[%emt 0:01:04]} 33. e5 {
[%emt 0:01:14]} (33. axb5 $16 Rxb5 34. d5) 33... Nb4 $14 {[%emt 0:00:56]} 34.
Bxa8 {[%emt 0:00:25]} (34. Bf1 $5 {[%cal Ra4b5]}) 34... Rxa8 {[%emt 0:00:01]}
35. axb5 {[%emt 0:03:18] Threatening b6.} fxe5 {[%emt 0:01:10]} (35... dxe5 $11
36. dxe5 Nd3) 36. dxe5 {[%emt 0:00:05]} Nd3 {[%emt 0:00:06] [#]} 37. Rc7 $36 {
[%emt 0:00:41] White is on the roll.} dxe5 {[%emt 0:01:11] [#]} (37... Nxf2 $16
38. Kxf2 dxe5) 38. b6 $2 {[%emt 0:01:15]} (38. Ba7 $1 $18) 38... Nxf2 $16 {
[%emt 0:00:25]} 39. b7 {[%emt 0:00:22]} Nh3+ $2 {[%emt 0:00:36] White now
steadily converts the win.} (39... Rab8 $14) 40. Kg2 $18 {[%emt 0:00:08]} Ng5 {
[%emt 0:00:31] [#]} 41. Rd1 {[%emt 0:36:11] Prevents Rd2+. Rxd8+ is the strong
threat.} Re8 {[%emt 0:02:22]} (41... Rab8 $2 42. Rxd8+ Rxd8 43. Rc8 Rxc8 44.
bxc8=Q+) (41... Rdb8 42. bxa8=N) 42. bxa8=Q {[%emt 0:00:00]} ({Weaker is} 42.
bxa8=R Rxa8 43. h4 Ne6 $18) 42... Rxa8 {[%emt 0:00:10] Endgame KRR-KRN} 43.
Rdc1 {[%emt 0:02:58]} Ne6 {[%emt 0:02:44]} 44. Re7 {[%emt 0:00:00]} Nd4 {
[%emt 0:01:25]} 45. Rcc7 {[%emt 0:00:00]} Nf5 {[%emt 0:03:07]} 46. Rxe5 {
[%emt 0:00:00]} g6 {[%emt 0:00:00]} 47. Rec5 {[%emt 0:00:00] aiming for Rc8+.}
Nd6 {[%emt 0:00:38] Inhibits Rc8+.} 48. R7c6 {[%emt 0:00:00]} Nf5 {[%emt 0:01:
17]} 49. Rc8+ {[%emt 0:00:00]} Rxc8 {[%emt 0:00:06]} 50. Rxc8+ {[%emt 0:00:00]
KR-KN} Kg7 {[%emt 0:00:06]} 51. Rc7+ {[%emt 0:00:00]} Kh6 {[%emt 0:00:39]} 52.
Kf3 {[%emt 0:00:00]} Nd6 {[%emt 0:03:08]} 53. Rc5 {[%emt 0:00:00]} a4 {[%emt 0:
00:11]} 54. g4 {[%emt 0:00:00]} Kg7 {[%emt 0:00:31]} 55. Kf4 {[%emt 0:00:00]}
h6 {[%emt 0:00:26]} 56. Ke5 {[%emt 0:00:00] White threatens Rc7+ and mate.}
Nf7+ {[%emt 0:00:29]} 57. Kd4 {[%emt 0:00:00] And now Ra5 would win.} Ng5 {
[%emt 0:00:21] [#]} 58. Rxg5 $1 {[%emt 0:00:00]} hxg5 {[%emt 0:00:09]} 59. Kc4
{[%emt 0:00:00] Weighted Error Value: White=0.16 (very precise) /Black=0.57} (
59. Kc5 $142 Kf6 60. Kb4 Ke7 61. Kxa4 Kd7 62. b4 Ke6 63. b5 Ke5 64. b6) 1-0

[Event "44th Chess Olympiad Open 2022"]
[Site "Chennai"]
[Date "2022.08.01"]
[Round "4.37"]
[White "Khusenkhojaev, Muhammad"]
[Black "Dardha, Daniel"]
[Result "0-1"]
[WhiteElo "2397"]
[BlackElo "2575"]
[Annotator "TA"]
[PlyCount "66"]
[EventDate "2022.??.??"]
[TimeControl "60"]

{[%evp 13,66,0,2,2,12,6,6,6,5,5,5,8,5,0,0,0,1,0,2,0,16,16,0,14,27,28,29,15,29,
0,0,0,0,0,24,33,27,14,31,36,17,-43,-42,-133,-64,-56,-62,-578,-556,-577,-575,
-570,-549,-487,-460]} 1. d4 {[%emt 0:00:11]} d5 {[%emt 0:00:20]} 2. c4 {
[%emt 0:00:07]} e6 {[%emt 0:00:03]} 3. cxd5 {[%emt 0:00:15]} exd5 {[%emt 0:00:
00]} 4. Nc3 {[%emt 0:00:04]} c6 {[%emt 0:00:30]} 5. Nf3 {[%emt 0:00:08]} Bd6 {
[%emt 0:02:58]} 6. Bg5 {[%emt 0:01:36]} Ne7 {[%emt 0:04:08]} 7. e3 {[%emt 0:00:
00]} O-O {[%emt 0:03:36]} 8. Bd3 {[%emt 0:01:09] D31: Queen's Gambit Declined:
Semi-Slav without ...Nf6 (+ Marshall Gambit and Noteboom) and Exchange
Variation lines without ...Nf6.} Bg4 $5 {[%emt 0:02:03] A promising side line.}
9. Qc2 {[%emt 0:00:40] [#]} h6 $146 {[%emt 0:00:42]} ({Predecessor:} 9... f6
10. Bh4 f5 11. Ne5 Bxe5 12. dxe5 Nd7 13. f4 Nc5 14. h3 Bh5 15. Rg1 Qd7 {
1-0 (59) Ulian,A (1572)-Cazan,M (1669) Mamaia 2021}) 10. Bh4 {[%emt 0:00:00]
The position is equal.} Qd7 {[%emt 0:04:46]} 11. Bg3 {[%emt 0:02:32]} Bf5 {
[%emt 0:04:33]} (11... Bxg3 {is more complex.} 12. hxg3 Qe6 13. Ne5 Nd7) 12.
Bxd6 {[%emt 0:02:05]} Bxd3 {[%emt 0:00:06]} 13. Qxd3 {[%emt 0:00:10] Strongly
threatening Ba3.} Qxd6 {[%emt 0:00:02]} 14. O-O {[%emt 0:00:14]} Nd7 {[%emt 0:
00:00]} 15. Rab1 {[%emt 0:04:33]} a6 {[%emt 0:03:47]} 16. h3 {[%emt 0:01:42]}
Rae8 {[%emt 0:05:06]} 17. b4 {[%emt 0:03:23]} b5 {[%emt 0:07:51]} 18. a4 {
[%emt 0:08:24]} Nc8 {[%emt 0:03:51][%cal Ye7c8,Yc8d6,Yd6c4]} 19. a5 {[%emt 0:
15:24]} Qe7 {[%emt 0:00:45]} 20. Ne2 {[%emt 0:04:50]} Nd6 {[%emt 0:00:00]} 21.
Qc3 {[%emt 0:00:19]} Nc4 {[%emt 0:01:24]} 22. Nf4 {[%emt 0:00:11]} Nf6 {
[%emt 0:01:51]} 23. Nd2 {[%emt 0:02:35]} g5 {[%emt 0:06:24]} 24. Nd3 {[%emt 0:
00:00]} g4 {[%emt 0:00:19]} 25. hxg4 {[%emt 0:05:11]} Nxg4 {[%emt 0:01:04]} 26.
Nf3 {[%emt 0:01:02]} Kh8 {[%emt 0:02:48]} 27. Nc5 {[%emt 0:00:41]} (27. Nf4 $11
) 27... Rg8 $15 {[%emt 0:02:17] And now ...Qf6 would win.} 28. Qd3 {[%emt 0:00:
00]} (28. Nxa6 Qf6 29. Nc5 Nge5 $1 $19) (28. Rfe1 $1 $15) 28... Rg7 {[%emt 0:
00:00]} (28... Qf6 $1 $17 {[%cal Yg4e5] White must now prevent ...Nge5!} 29.
Qe2 (29. Nxa6 Nge5 $19) 29... Qg6) 29. Qf5 {[%emt 0:09:28] Against Nge5} Reg8
$1 {[%emt 0:02:32]} ({Don't do} 29... Ngxe3 30. fxe3 Nxe3 31. Qe5 $1 $16) 30.
Kh1 $2 {[%emt 0:05:06] [#] White does not recover from this.} ({White should
play} 30. Rbe1 $15) 30... Nd2 $1 $19 {[%emt 0:01:53] aiming for ...Rg5. Black
is clearly winning.} 31. Rbd1 {[%emt 0:04:52]} Nxf3 {[%emt 0:00:35]} 32. Qxf3 {
[%emt 0:01:06]} Qh4+ {[%emt 0:00:10]} 33. Qh3 {[%emt 0:00:16]} Nxf2+ {[%emt 0:
00:10] Weighted Error Value: White=0.39/Black=0.06 (flawless)} 0-1